Cogmind - Beta 16 @@@ ROGUE MODE // 2026.01.07 @ 11:58:30 Player: Dizzar Result: Destroyed by YB-8J5(j) with Overtuned Pulse Rifle Performance ------------- Evolutions (0) 0 Regions Visited (3) 600 Robots Destroyed (6) 30 Value Destroyed (238) 238 Prototype IDs (6) 120 Alien Tech Used (0) 0 Bonus (800) 800 TOTAL SCORE: 1788 Bonus ------- Registered with UFD 300 Met Optimus in HQ 500 Cogmind --------- Core Integrity 0/250 Matter 280/300 Energy 230/250 System Corruption 2% Temperature Hot (272) Movement Walking (100) Location -8/Scraptown Parts ------- > --- POWER (1) -------- Ion Engine > --- PROPULSION (2) --- Overtuned Titanium Leg Overtuned Titanium Leg > --- UTILITY (2) ------ Improved Targeting Computer Makeshift Light Armor Plating > --- WEAPON (2) ------- Overtuned Pulse Rifle Beamcaster > --- INVENTORY (5) ---- Scrap Suit Experimental Signal Interpreter Scrapoid Pod Peak State ------------ > --- POWER ------------ Ion Engine > --- PROPULSION ------- Overtuned Titanium Leg Overtuned Titanium Leg > --- UTILITY ---------- Improved Targeting Computer Makeshift Light Armor Plating > --- WEAPON ----------- Overtuned Pulse Rifle Beamcaster > --- INVENTORY -------- Scrap Suit Experimental Signal Interpreter Scrapoid Pod [Rating: 23] Favorites ----------- Power Ion Engine Engine Ion Engine Propulsion Aluminum Leg Treads Overtuned Treads Leg Aluminum Leg Wheel Wheel Utility Improved Targeting Computer Device Shield Generator Storage Small Storage Unit Processor Improved Targeting Computer Protection Makeshift Light Armor Plating Weapon Small Laser Energy Gun Small Laser Ballistic Gun Light Assault Rifle Build | -11 -10 -10 -8 ------- Run | Yrd Mat Sub Scr Slots Evolved . | . . . . Power . | . . . . Propulsion . | . . . . Utility . | . . . . Weapon . | . . . . Parts Attached 16 | . 3 . 13 Power 1 | . 1 . . Engine 1 | . 1 . . Core . | . . . . Reactor . | . . . . Propulsion 7 | . . . 7 Treads 2 | . . . 2 Leg 3 | . . . 3 Wheel 2 | . . . 2 Hover . | . . . . Flight . | . . . . Utility 4 | . 2 . 2 Device 2 | . 1 . 1 Storage . | . . . . Processor 1 | . 1 . . Hackware . | . . . . Protection 1 | . . . 1 Artifact . | . . . . Weapon 4 | . . . 4 Energy Gun 3 | . . . 3 Energy Cannon . | . . . . Ballistic Gun 1 | . . . 1 Ballistic Cannon . | . . . . Launcher . | . . . . Special Weapon . | . . . . Impact Weapon . | . . . . Slashing Weapon . | . . . . Piercing Weapon . | . . . . Special Melee Weapon . | . . . . Unidentified Prototypes . | . . . . Parts Lost 4 | . . . 4 Power . | . . . . Propulsion 2 | . . . 2 Utility 1 | . . . 1 Weapon 1 | . . . 1 Highest Loss Streak 2 | . . . 2 To Critical Strikes . | . . . . Average Backups 4 | . 4 5 4 Power . | . 1 1 . Propulsion 1 | . 2 2 1 Utility 1 | . . 1 1 Weapon . | . 1 1 . Tool/Special . | . . . . Unused Backups 17 | . 7 . 10 Power 1 | . . . 1 Propulsion 7 | . 4 . 3 Utility 5 | . 1 . 4 Weapon 3 | . 2 . 1 Tool/Special 1 | . . . 1 Average Slot Usage (%) 99 | . 98 100 99 Engine 14 | . 14 14 14 Treads 2 | . . . 2 Leg 24 | . 28 28 24 Device 12 | . 12 14 12 Processor 13 | . 10 14 14 Energy Gun 14 | . 14 14 14 Ballistic Gun 13 | . 14 14 13 Peak Build Rating 23 | . 9 9 23 Average Rating 10 | . 8 9 10 On Entrance 7 | 6 6 9 9 Avg Prop Armor Cover (%) 10 | . . . 10 Naked Turns . | . . . . Heaviest Build 17 | 10 12 9 17 Greatest Support 38 | 20 20 20 38 Greatest Overweight (x) 3 | . . . 3 Average Overweight (x) . | . . . . Largest Inventory Capacity 8 | . 8 5 5 Average Capacity 5 | . 5 5 5 Most Carried 6 | . 6 5 5 Average Carried 4 | . 4 5 4 Final Capacity 8 | 8 5 5 5 Final Carried 6 | 6 5 5 5 Class Distribution -------------------- 96% | Mutant 3% | Scavenger-Mutant Dominant Class ---------------- Mutant | -10/Materials Mutant | -10/Subcaves Mutant | -8/Scraptown Resources | -11 -10 -10 -8 ----------- Run | Yrd Mat Sub Scr Matter Collected 349 | 200 . . 149 Remotely . | . . . . Salvage Created 360 | . . . 360 Parts 15 | . . . 15 Haulers Intercepted . | . . . . Recyclers Shooed . | . . . . Parts Field Recycled . | . . . . Retrieved Matter . | . . . . Parts Self-Destructed . | . . . . Prevented . | . . . . Parts Restored . | . . . . Kills | -11 -10 -10 -8 ------- Run | Yrd Mat Sub Scr Combat Hostiles Destroyed 6 | . . . 6 Guns 6 | . . . 6 Classes Destroyed 4 | . . . 4 Bolteater 1 | . . . 1 Explorer 1 | . . . 1 Ranger 2 | . . . 2 Scrapper 2 | . . . 2 Best Kill Streak 2 | . . . 2 Combat Bots Only 2 | . . . 2 Max Kills in Single Turn 1 | . . . 1 Gunslinging . | . . . . Exploded . | . . . . Melee . | . . . . Uniques/NPCs Destroyed . | . . . . Combat | -11 -10 -10 -8 -------- Run | Yrd Mat Sub Scr Hostile Shots Fired 105 | . . . 105 Missed 22 | . . . 22 Hits 83 | . . . 83 Melee 4 | . . . 4 Projectile 79 | . . . 79 Critical Strikes 4 | . . . 4 Damage Taken 1086 | . . . 1086 Core 255 | . . . 255 Absorbed by Shields 32 | . . . 32 Core Remaining (%) 100 | 100 . . . Volleys Fired 30 | . . . 30 Largest 2 | . . . 2 Hottest 155 | . . . 155 Shots Fired 53 | . . . 53 Gun 53 | . . . 53 Cannon . | . . . . Launcher . | . . . . Special . | . . . . Kinetic 23 | . . . 23 Thermal 30 | . . . 30 Explosive . | . . . . Electromagnetic . | . . . . Robot Hit Streak 11 | . . . 11 Robot Miss Streak 2 | . . . 2 Penetration Max . | . . . . Secondary Targets . | . . . . Shots Hit Robots 39 | . . . 39 Core Hits 13 | . . . 13 Critical Kills . | . . . . Critical Parts Destroyed 1 | . . . 1 Critical Strikes 1 | . . . 1 Destroy 1 | . . . 1 Melee Attacks . | . . . . Impact . | . . . . Slashing . | . . . . Piercing . | . . . . Sneak Attacks . | . . . . Combat Hostiles . | . . . . Follow-up Attacks . | . . . . Damage Inflicted 392 | . . . 392 Guns 392 | . . . 392 Cannons . | . . . . Explosions . | . . . . Melee . | . . . . Ramming . | . . . . Kinetic 104 | . . . 104 Thermal 288 | . . . 288 Explosive . | . . . . Electromagnetic . | . . . . Impact . | . . . . Slashing . | . . . . Piercing . | . . . . Highest Corruption 1 | . . . 1 Average Corruption 1 | . . . 1 Corruption Purged . | . . . . Corruption Blocked . | . . . . Overload Shots . | . . . . Overflow Damage . | . . . . Projectiles . | . . . . Explosions . | . . . . Melee . | . . . . Knockbacks . | . . . . Impact . | . . . . Kinetic . | . . . . Secondary . | . . . . Self-Inflicted Damage . | . . . . Shots . | . . . . Rammed . | . . . . Targets Rammed . | . . . . Kicked . | . . . . Crushed . | . . . . Highest Temperature 260 | . . . 260 Average Temperature 72 | . . . 72 Received Heat Transfer 453 | . . . 453 Siege Activations . | . . . . Martial Activations . | . . . . Shielding Activations . | . . . . Robots Disrupted . | . . . . Combat Hostiles . | . . . . Robots Corrupted . | . . . . Combat Hostiles . | . . . . Parts Fried . | . . . . Impact Corruptions . | . . . . Robots Melted . | . . . . Combat Hostiles . | . . . . Parts Melted . | . . . . Heat Transferred 423 | . . . 423 Parts Sabotaged . | . . . . Parts Stolen 1 | . . . 1 Parts Stripped . | . . . . Power Chain Reactions . | . . . . Alert | -11 -10 -10 -8 ------- Run | Yrd Mat Sub Scr Maximum Alert Level . | . . . . Low Security (%) 100 | . 100 . . Level 1 . | . . . . Level 2 . | . . . . Level 3 . | . . . . Level 4 . | . . . . Level 5 . | . . . . High Security . | . . . . Max Security . | . . . . Peak Influence . | . . . . Initial . | . . . . Average . | . . . . Influence Increases . | . . . . Influence Decreases . | . . . . Squads Dispatched . | . . . . Investigation . | . . . . Extermination . | . . . . Reinforcement . | . . . . Assault . | . . . . Garrison . | . . . . Intercept . | . . . . Searches Triggered . | . . . . Construction Impeded . | . . . . Haulers Reinforced . | . . . . Active Scanning Responses . | . . . . Cargo Convoy Interrupts . | . . . . Stealth | -11 -10 -10 -8 --------- Run | Yrd Mat Sub Scr Distress Signals . | . . . . Communications Jammed . | . . . . Distress Signals . | . . . . Times Spotted 18 | . . . 18 Peak Tracking Total 7 | . . . 7 Tactical Retreats . | . . . . Traps | -11 -10 -10 -8 ------- Run | Yrd Mat Sub Scr Traps Triggered . | . . . . Indirectly . | . . . . Trap Hack Attempts . | . . . . Triggered . | . . . . Disarmed . | . . . . Reprogrammed . | . . . . Reused . | . . . . Traps Extracted . | . . . . Installed . | . . . . Triggered . | . . . . Machines | -11 -10 -10 -8 ---------- Run | Yrd Mat Sub Scr Machines Disabled . | . . . . Max in Single Turn . | . . . . Machines Repaired . | . . . . Machines Dismantled . | . . . . Machines Sabotaged . | . . . . Overloaded Fab Kills . | . . . . Hacking | -11 -10 -10 -8 --------- Run | Yrd Mat Sub Scr Machines Accessed 7 | . . . 7 Terminals . | . . . . Fabricators . | . . . . Repair Stations . | . . . . Recycling Units . | . . . . Scanalyzers . | . . . . Garrison Access . | . . . . Total Hacks 61 | . . . 61 Successful 61 | . . . 61 Failed . | . . . . Catastrophic . | . . . . Database Lockouts . | . . . . Manual . | . . . . Terminals . | . . . . Fabricators . | . . . . Repair Stations . | . . . . Recycling Units . | . . . . Scanalyzers . | . . . . Garrison Access . | . . . . Terminal Hacks 61 | . . . 61 Record 61 | . . . 61 Fabricator Hacks . | . . . . Repair Station Hacks . | . . . . Recycling Unit Hacks . | . . . . Scanalyzer . | . . . . Garrison Access Hacks . | . . . . Unauthorized Hacks . | . . . . Terminals . | . . . . Fabricators . | . . . . Repair Stations . | . . . . Recycling Units . | . . . . Scanalyzers . | . . . . Garrison Access . | . . . . Data Cores Recovered . | . . . . Used . | . . . . Hacking Detections . | . . . . Full Trace Events . | . . . . Feedback Events . | . . . . Feedback Blocked . | . . . . Robot Schematics Acquired . | . . . . Robots Built . | . . . . Authchips . | . . . . Time . | . . . . Total Robot Build Rating . | . . . . Part Schematics Acquired . | . . . . Parts Built . | . . . . Authchips . | . . . . Time . | . . . . Total Part Build Rating . | . . . . Part Studies Acquired . | . . . . Parts Repaired . | . . . . Time . | . . . . Parts Recycled . | . . . . Recycled Matter . | . . . . Retrieved Matter . | . . . . Retrieved Components . | . . . . Parts Scanalyzed . | . . . . Part Schematics Acquired . | . . . . Parts Damaged . | . . . . Bothacking | -11 -10 -10 -8 ------------ Run | Yrd Mat Sub Scr Used RIF Installer . | . . . . Robots Hacked . | . . . . Non-combat . | . . . . Combat . | . . . . Robot Hacks Applied . | . . . . Relay Couplers Released . | . . . . Fabnet Peak Effective % . | . . . . Robots Rewired . | . . . . Allies Hacked . | . . . . Hacks Repelled . | . . . . Allies | -11 -10 -10 -8 -------- Run | Yrd Mat Sub Scr Total Allies . | . . . . Largest Group . | . . . . Highest-Rated Group . | . . . . Highest-Rated Ally . | . . . . Total Orders . | . . . . Ally Attacks . | . . . . Total Damage . | . . . . Kills . | . . . . Allies Corrupted . | . . . . Allies Melted 5 | . . . 5 Intel | -11 -10 -10 -8 ------- Run | Yrd Mat Sub Scr Active Infowar (turns) . | . . . . Robot Analysis Total . | . . . . Derelict Logs Recovered . | . . . . Drone Launches . | . . . . Drone Recoveries . | . . . . Exploration | -11 -10 -10 -8 ------------- Run | Yrd Mat Sub Scr Turns Passed 1928 | . 88 37 1803 Spaces Moved 1512 | 1 68 26 1417 Core 1 | . . . 1 Treads 79 | . . . 79 Legs 1395 | 1 68 26 1300 Wheels 37 | . . . 37 Hover . | . . . . Flight . | . . . . Fastest Speed 45 | 120 120 120 45 Average Speed 118 | 120 120 120 118 Slowest Speed 200 | 120 120 120 200 Overloaded Moves . | . . . . Propulsion Burnouts . | . . . . Robots Hopped . | . . . . Potential Cave-ins . | . . . . Cave-ins Triggered . | . . . . Exploration Rate (%) 26 | 2 15 2 87 Regions Visited 3 Branch Regions 2 Pre-discovered Areas . | . . . . Known Exits Taken . | . . . . Unknown Exits Taken 3 | 1 1 1 . Scrap Searched 1 | . . . 1 Spaces Dug . | . . . . Terrain Destroyed . | . . . . Melee . | . . . . Projectile . | . . . . AOE . | . . . . Terrain Rammed . | . . . . Walls Destroyed . | . . . . Machines Disabled . | . . . . Actions | -11 -10 -10 -8 --------- Run | Yrd Mat Sub Scr Total 1598 | . 74 32 1492 Wait 18 | . . 7 11 Move 1509 | . 67 25 1417 Hop . | . . . . Pick Up 8 | . 1 . 7 Fast Attach 12 | . 2 . 10 Attach 3 | . . . 3 Detach . | . . . . Swap 1 | . 1 . . Drop 17 | . 3 . 14 Fire 30 | . . . 30 Melee . | . . . . Ram . | . . . . Kick . | . . . . Crush . | . . . . Escape Stasis . | . . . . Rewire . | . . . . Trap . | . . . . Miscellaneous . | . . . . Route ------- -11/Scrapyard -10/Materials -10/Subcaves -8/Scraptown (discovered 1 exit: [*Fac]) History --------- Turn | Location | Event 1 | -11/Scrapyard | Discovered new exit (range 0) 1 | -11/Scrapyard | Entered Materials 2 | -10/Materials | Met a group of wandering Federalists 79 | -10/Materials | Discovered new exit (range 10) 89 | -10/Materials | Entered Subcaves 89 | -10/Subcaves | Accompanied by 2 allies 90 | -10/Subcaves | Continued accompanying wandering Federalists (4) 90 | -10/Subcaves | Approached by a straggling Scientist 126 | -10/Subcaves | Scientist uncovered a shortcut to Scraptown 126 | -10/Subcaves | Entered Scraptown 254 | -8/Scraptown | Visited UFD Registry 270 | -8/Scraptown | Visited TADAMA 310 | -8/Scraptown | Build established: Mutant 372 | -8/Scraptown | Discovered new exit (range 11) 460 | -8/Scraptown | Heard Great Nut preacher, LISTEN AND RECITE! 780 | -8/Scraptown | Visited Fellowship of the Rings 813 | -8/Scraptown | Visited Cyclists 863 | -8/Scraptown | Registered with UFD as "Electrotail" 899 | -8/Scraptown | Entered Cyclist Reading Room 938 | -8/Scraptown | Visited Bundlers 962 | -8/Scraptown | Visited SPCMW 1059 | -8/Scraptown | Visited Curators Association 1090 | -8/Scraptown | Visited Science Testing Area 1112 | -8/Scraptown | Visited Supply Room 1174 | -8/Scraptown | Visited Junk Repository 1209 | -8/Scraptown | Visited Scrapoid Pod Storage 1215 | -8/Scraptown | Found Scrapoid Pod 1271 | -8/Scraptown | Visited Observation Area 1332 | -8/Scraptown | Visited Infowarlord's Domain 1358 | -8/Scraptown | Visited DA-N13 Charitable Foundation 1475 | -8/Scraptown | Met Optimus 1475 | -8/Scraptown | Accepted into 0bPrime 1628 | -8/Scraptown | Civil war broke out across Scraptown 1794 | -8/Scraptown | Found Scrap Suit 1850 | -8/Scraptown | Core integrity fell below 50% 1891 | -8/Scraptown | Found Exp. Signal Interpreter 1912 | -8/Scraptown | Lost 4 allies 1929 | -8/Scraptown | Core integrity fell below 20% 1929 | -8/Scraptown | Destroyed by YB-8J5(j) with Overtuned Pulse Rifle Last Messages --------------- 01898_ Ovr. Titanium Leg suddenly begins malfunctioning. 01907_ Dropped Sml. Laser. 01907_ Acquired Beamcaster. 01909_ Dropped Ovr. Pulse Rifle. 01909_ Bolt penetrates Machine. 01909_ Acquired 10 matter. 01910_ 8Y-JQQ(j) heat spikes uncontrollably. 01911_ Dropped Ovr. Titanium Leg. 01912_ Acquired Ovr. Titanium Leg. 01912_ Penetrated by Bolt. 01914_ Acquired Ovr. Pulse Rifle. 01915_ Critical hit (Burn: +50). 01915_ Bolt penetrates Machine. 01923_ Ovr. Pulse Rifle suddenly begins malfunctioning. 01923_ 8Y-JQQ(j) suffers critical hit (Destroy). 01923_ 8Y-JQQ(j) destroyed. 01925_ Penetrated by Bolt. 01927_ EI-293(g) destroyed. Map ----- +----------------------------------------------------+ | #????????###### ########### ####?###### ###?# ## | | ###???????##### ########### ########### ##### ## | | #???????#"""" """"""""""" """"""""""" """"" "" | | #???????#" | | #???????#" | | #???????#" | | #???????#" | | #????####" | | #????"""" """""""""""""""""""""""""""" | | #???#"""" """""""""""""""""""""""""""" | | #???#"""" ""###### ################"" | | #???#"""" ""# ##????????#"" | | #???#"""" ""# X"#????????#"" | | ###?#"""" ""# "" "" ##????????#"" | | ""#"#"""" ! ""# "" " X"#??????###""!* | | """"#"""" ==%""# "!&! [" ######### #""[! ! | | ""#######"= *%!"" [%" !% ! !=[ % | | ###?????#"%[=!!%" = ! !*[%=* | | #########"!%=!=%"# " !/######### #""=*! = | | !!*=[!%# "" b "" ""#??????###"[%%= % | | % ![!![[# ""p!"" ##????????#""*[!=! | | *%!=%[# [%![= X"#????????#""*![%! | | % = ==!%*# = ##????????#""[%%[ | | [ % [!*[%!##### ################""!%! | | =[=%/=""""""""""""""""" """""!%! | | !%* !=*%!/j=!@= "" """""" """" | | = = =[%*!%h[p! =% %= [ | | [%* =!==%[!%=!%== *= % | | ! % !%!%!!!= *%* | | #""""#=%! = %[[[= = =%* | | #????#" !%* !%== = | | #????#"""" [ """" " """ """""""""" """" | | ####????#######%########### ########### ###### | | #??????????# =* #??# #????# ## | | #??????????# #??# #????#"" ## | | #??????????# #??# #????#" "## | | #??????????# $ $ #??# #????#" """"" "## | | #??????????# ## #??# #????#" "???" "## | | #??????????# ## #??# #????#" "???" "## | | #??????????##########??# #????#" "???" "## | | #??????????????????????# #????#" "???" "## | | #??????????????????????#######????#" """"" "## | | #?????????????????????????????????#" "##! | | #?????????????????????????????????#"""""""""#"% | | #?????????????????????????????????#########"""* | | #????#######################################"" | | #????# ##" "##"""##"""##"""##"""## | "[[ | | #????# """"""" ## ""## ""##" "## "## "|## "&% | | #????# """""""!! *=%=! = | | #????# """""""=% [[ [!= [ * / | +----------------------------------------------------+ Best States ------------- Heat Dissipation 25 Energy Generation 10 Energy Capacity 250 Matter Stores 300 Matter Capacity 300 Sight Range 16 Terrain Scan Density 10 Armor Coverage 100 Evasion (%) 55 Targeting Accuracy 6 Recoil Reduction 2 Item Schematics ----------------- None Robot Schematics ------------------ None Fabricated ------------ Nothing Repaired ---------- Nothing Studied --------- None Alien Tech Used ----------------- None Achievements -------------- Bob, First Of His Name Civilization 2243 Link The Feds Nice Directions, Buddy Strength In Numbers Challenges ------------ None Game ------ Seed RiotOvertunedMicrothruster Manual? 0 Play Time 00:24:44 Cumulative 57.7 hours Start 2026.01.07 @ 11:33:33 End 2026.01.07 @ 11:58:30 Sessions 1 Manual Loads 0 Difficulty Rogue Special Mode None Game No. 84 Rogue 84 Adventurer 0 Explorer 0 Win Type - Total 4 Types 4/0/0/0/0/0/0/0/0/0 Lore% 34 Gallery% 41 Achievement% 26 Wizard Run 0 Options --------- Layout 1 ASCII 0 Keyboard 0 Movement Numpad Keybinds 0 Fullscreen 1 Font 24/Smallcaps Map View 50x35 Zoom Use 0% Tactical HUD 1 Map Filters NONE Filters NONE Steam 1 RUN: b0e55ae4-415d-4a69-aef1-b5d55a2a4624